Cogmind - Beta 16 @@@ ROGUE MODE // 2025.11.02 @ 18:33:46 Player: cptwinky Result: Escaped! Performance ------------- Evolutions (9) 4500 Regions Visited (22) 4400 Robots Destroyed (166) 830 Value Destroyed (7686) 7686 Prototype IDs (32) 640 Alien Tech Used (0) 0 Bonus (6116) 6116 TOTAL SCORE: 24172 Bonus ------- High Alert Combat Kills 531 Follower Combat Kills 885 Entered Garrisons 400 Used RIF Installer 1000 Aligned with FarCom 300 Win 3000 Cogmind --------- Core Integrity 1600/1600 Matter 78/300 Energy 122/125 System Corruption 0% Temperature Cool (2) Movement Walking (120) Location To Epsilon Eridani Parts ------- > --- POWER (2) -------- Light Ion Engine > --- PROPULSION (2) --- Centrium Leg > --- UTILITY (17) ----- Advanced Weight Redist. System Improved Signal Interpreter Improved Terrain Scanner Improved Targeting Computer Advanced Target Analyzer Core Analyzer Core Analyzer Improved Weapon Shielding Improved Hacking Suite Improved Hacking Suite Improved System Shield Improved System Shield Relay Coupler [Heavy] (18) Relay Coupler [Behemoth] (15) > --- WEAPON (4) ------- Improved Remote Datajack Improved Plasma Cutter Vibroblade > --- INVENTORY (5) ---- HERF Cannon Fusion Bomb Launcher Peak State ------------ > --- POWER ------------ Light Quantum Reactor > --- PROPULSION ------- Centrium Leg Centrium Leg > --- UTILITY ---------- Advanced Heat Sink Advanced Heat Sink Medium Storage Unit Improved Signal Interpreter Improved Targeting Computer Advanced Target Analyzer Core Analyzer Layered Medium Armor Plating Layered Medium Armor Plating Hacking Suite Improved Hacking Suite Improved Hacking Suite Improved System Shield Improved System Shield Mapping Drone Bay > --- WEAPON ----------- Nova Cannon Improved Remote Datajack Vibroblade Vibroblade > --- INVENTORY -------- Light Quantum Reactor Biometal Leg Centrium Leg Improved Trap Extractor Trap Reconfigurator HERF Cannon Fusion Bomb Launcher Improved Plasma Cutter [Rating: 129] Favorites ----------- Power Micro Fission Core Engine Light Ion Engine Power Core Micro Fission Core Reactor Light Antimatter Reactor Propulsion Flexi-carbon Leg Leg Flexi-carbon Leg Utility Medium Storage Unit Device Improved Heat Sink Storage Medium Storage Unit Processor Improved Signal Interpreter Hackware Hacking Suite Protection Hardened Light Armor Plating Weapon Heavy Assault Rifle Energy Gun Phase Gun Energy Cannon Nova Cannon Ballistic Gun Heavy Assault Rifle Ballistic Cannon Enhanced Gauss Cannon Launcher Mini Grenade Launcher Special Weapon Remote Datajack Impact Weapon Mace Slashing Weapon Vibroblade Build | -11 -10 -10 -10 -9 -8 -8 -7 -7 -6 -5 -5 -5 -5 -5 -4 -4 -4 -4 -4 -3 -2 -1 ------- Run | Yrd Mat Min Exi Min Mat Gar Fac Gar Fac Fac Was Fac Upp Upp Fac Was Fac Upp Upp Res Res Acc Slots Evolved 18 | . . . . . 4 . 2 . 2 2 . . . . 2 . . . . 2 2 2 Power 1 | . . . . . . . . . . 1 . . . . . . . . . . . . Propulsion . | . . . . . . . . . . . . . . . . . . . . . . . Utility 15 | . . . . . 2 . 2 . 2 1 . . . . 2 . . . . 2 2 2 Weapon 2 | . . . . . 2 . . . . . . . . . . . . . . . . . Parts Attached 183 | 6 5 3 . 5 9 12 8 5 10 6 1 5 7 2 19 1 16 4 1 8 42 8 Power 23 | 1 . 1 . 1 1 1 . 1 . 2 . . 1 . 4 . 2 1 1 1 4 1 Engine 8 | 1 . 1 . 1 1 . . . . 1 . . . . 1 . . . 1 . . 1 Core 8 | . . . . . . 1 . 1 . 1 . . 1 . 3 . . 1 . . . . Reactor 7 | . . . . . . . . . . . . . . . . . 2 . . 1 4 . Propulsion 27 | 2 . . . 3 1 5 1 . 1 . . . 1 1 . 1 2 . . 1 8 . Treads . | . . . . . . . . . . . . . . . . . . . . . . . Leg 27 | 2 . . . 3 1 5 1 . 1 . . . 1 1 . 1 2 . . 1 8 . Wheel . | . . . . . . . . . . . . . . . . . . . . . . . Hover . | . . . . . . . . . . . . . . . . . . . . . . . Flight . | . . . . . . . . . . . . . . . . . . . . . . . Utility 88 | 1 3 1 . . 3 4 4 2 7 3 1 3 4 1 10 . 7 3 . 4 21 6 Device 35 | . 1 . . . 1 2 2 1 1 . . 1 3 1 5 . 4 1 . 3 7 2 Storage 3 | 1 1 . . . . . . . . . . . . . . . . . . 1 . . Processor 11 | . . . . . . 1 1 . 2 . . . . . 1 . 2 . . . 3 1 Hackware 18 | . . . . . 1 . . . 3 2 1 2 . . . . . . . . 6 3 Protection 21 | . 1 1 . . 1 1 1 1 1 1 . . 1 . 4 . 1 2 . . 5 . Artifact . | . . . . . . . . . . . . . . . . . . . . . . . Weapon 45 | 2 2 1 . 1 4 2 3 2 2 1 . 2 1 . 5 . 5 . . 2 9 1 Energy Gun 9 | 1 . . . . . 2 . . . . . . . . 2 . . . . . 4 . Energy Cannon 4 | . . . . . . . . . . 1 . 1 . . . . . . . 1 1 . Ballistic Gun 21 | 1 2 . . . 3 . 3 2 . . . 1 1 . 2 . 5 . . 1 . . Ballistic Cannon 1 | . . . . . . . . . 1 . . . . . . . . . . . . . Launcher 4 | . . 1 . 1 . . . . . . . . . . 1 . . . . . 1 . Special Weapon 3 | . . . . . . . . . 1 . . . . . . . . . . . 1 1 Impact Weapon 1 | . . . . . 1 . . . . . . . . . . . . . . . . . Slashing Weapon 2 | . . . . . . . . . . . . . . . . . . . . . 2 . Piercing Weapon . | . . . . . . . . . . . . . . . . . . . . . . . Special Melee Weapon . | . . . . . . . . . . . . . . . . . . . . . . . Unidentified Prototypes 4 | . . . . . . . . . . . . . . . . . . . . . 4 . Parts Lost 56 | . . . . . . 6 . . 1 . . 2 3 . 3 4 3 . . 2 32 . Power 8 | . . . . . . 1 . . . . . . 1 . . . . . . . 6 . Propulsion 4 | . . . . . . 1 . . . . . . . . . . . . . . 3 . Utility 29 | . . . . . . 1 . . 1 . . 2 . . 2 2 3 . . 2 16 . Weapon 15 | . . . . . . 3 . . . . . . 2 . 1 2 . . . . 7 . Highest Loss Streak 10 | . . . . . . 4 . . 1 . . 1 3 . 2 4 2 . . 1 10 . To Critical Strikes 1 | . . . . . . . . . . . . . . . . . . . . . 1 . Average Backups 9 | 1 6 10 9 9 8 9 10 9 9 9 9 8 9 9 8 9 9 9 10 10 8 3 Power . | . 1 . . . . . 1 . . . . . . . . . . . . . . . Propulsion . | . . . . . 1 2 1 1 . . . . 1 . . . . 1 1 1 . . Utility 3 | . 1 2 3 3 3 3 4 4 5 5 4 3 3 3 4 4 4 3 4 4 3 . Weapon 3 | . 4 7 6 5 3 3 3 3 2 3 4 3 3 3 3 3 3 3 3 3 2 2 Tool/Special . | . . . . . . . . . . . . . . . . . . . . . . . Unused Backups 19 | . 3 1 2 3 1 1 2 . 1 2 . 2 . . . . . . . . 1 . Power 2 | . . . . 1 . . . . . . . . . . . . . . . . 1 . Propulsion 1 | . . . . . . 1 . . . . . . . . . . . . . . . . Utility 6 | . . . . 1 . . 1 . 1 2 . 1 . . . . . . . . . . Weapon 10 | . 3 1 2 1 1 . 1 . . . . 1 . . . . . . . . . . Tool/Special . | . . . . . . . . . . . . . . . . . . . . . . . Average Slot Usage (%) 93 | . 95 100 100 100 99 99 98 100 96 95 100 96 89 88 91 64 75 86 94 87 81 62 Engine 4 | . 14 14 14 14 9 4 . . . 2 5 4 . . 1 . . . 4 3 . 3 Core 3 | . . . . . . 4 7 7 6 4 5 5 7 5 8 3 . . 5 4 2 . Leg 15 | . 28 28 28 28 18 17 15 15 13 10 11 10 11 11 10 7 4 10 10 9 7 3 Device 9 | . 8 . . . 9 9 13 15 14 9 5 5 14 17 16 19 17 12 10 13 12 5 Storage 7 | . 14 14 14 14 9 9 7 7 6 5 5 5 5 5 5 5 5 5 5 4 3 . Processor 10 | . . . . . . 4 14 15 11 11 11 11 11 11 10 15 20 26 26 23 22 18 Hackware 5 | . . . . . . 2 . . 9 18 23 19 11 11 4 . . . . . 9 20 Protection 8 | . 1 14 14 14 17 10 7 7 6 4 5 5 5 5 14 1 3 5 10 7 4 4 Energy Gun 1 | . 8 . . . . 4 1 . . . . . . . 5 5 . . . . 2 . Ballistic Gun 20 | . 19 27 28 27 28 27 28 28 23 16 17 17 17 17 11 2 19 20 21 15 4 . Peak Build Rating 129 | 6 11 12 13 15 24 32 46 48 58 71 71 74 73 75 107 106 96 100 100 110 129 93 Average Rating 54 | 4 8 11 12 13 23 26 44 46 52 64 69 68 70 71 90 63 82 91 97 99 106 73 On Entrance 51 | . 6 11 12 13 13 24 32 46 48 54 71 69 71 70 72 106 36 83 100 97 105 51 Avg Prop Armor Cover (%) 27 | . . . . . . . . . . . . . . . . . . . . . 27 27 Naked Turns . | . . . . . . . . . . . . . . . . . . . . . . . Heaviest Build 93 | 10 24 24 24 30 37 38 39 41 42 48 39 48 42 35 93 85 75 80 80 89 83 16 Greatest Support 60 | 20 20 20 20 20 20 40 40 40 40 40 40 40 40 43 43 43 55 50 50 50 60 30 Greatest Overweight (x) 2 | . 1 1 1 1 1 1 . 1 1 1 . 1 1 . 2 1 2 1 1 1 1 2 Average Overweight (x) . | . . 1 1 1 1 . . . . . . . . . . . 1 . 1 1 . . Largest Inventory Capacity 10 | 8 10 10 10 10 10 10 10 10 10 10 10 10 10 10 10 10 10 10 10 10 10 5 Average Capacity 9 | 7 8 10 10 10 10 10 10 10 10 10 10 10 10 10 10 10 10 10 10 10 8 5 Most Carried 10 | 4 10 10 10 10 10 10 10 10 10 10 10 10 10 10 10 10 10 10 10 10 10 5 Average Carried 9 | 1 7 9 9 9 8 9 9 9 9 9 9 9 10 9 9 9 9 9 10 9 8 3 Final Capacity 10 | 8 10 10 10 10 10 10 10 10 10 10 10 10 10 10 10 10 10 10 10 10 5 5 Final Carried 10 | 4 10 10 10 10 10 10 10 10 10 10 10 10 10 10 10 9 10 10 10 10 5 2 Class Distribution -------------------- 23% | Mutant 19% | Scavenger-Gunner 9% | Hacker-Skirmisher 8% | Scavenger-Skirmisher 8% | Scavenger-Tank 4% | Commander-Gunner 4% | Hacker-Mutant 3% | Skirmisher 3% | Commander-Skirmisher 3% | Scientist-Gunner Dominant Class ---------------- Mutant | -10/Materials Mutant | -10/Mines Mutant | -10/Exiles Mutant | -9/Mines Scavenger-Tank | -8/Materials Scavenger-Skirmisher | -8/Garrison Commander-Gunner | -7/Factory Commander-Gunner | -7/Garrison Skirmisher | -6/Factory Hacker-Skirmisher | -5/Factory Hacker-Skirmisher | -5/Waste Hacker-Skirmisher | -5/Factory Scientist-Gunner | -5/Upper Caves Scientist-Gunner | -5/Upper Caves Scavenger-Tank | -4/Factory Scavenger-Gunner | -4/Waste Scavenger-Gunner | -4/Factory Scavenger-Gunner | -4/Upper Caves Scavenger-Gunner | -4/Upper Caves Scavenger-Gunner | -3/Research Scavenger-Gunner | -2/Research Hacker-Assassin | -1/Access Resources | -11 -10 -10 -10 -9 -8 -8 -7 -7 -6 -5 -5 -5 -5 -5 -4 -4 -4 -4 -4 -3 -2 -1 ----------- Run | Yrd Mat Min Exi Min Mat Gar Fac Gar Fac Fac Was Fac Upp Upp Fac Was Fac Upp Upp Res Res Acc Matter Collected 6741 | 262 13 190 . 305 134 828 130 340 434 484 . 465 371 71 917 . 276 307 57 322 818 17 Remotely 165 | . . . . . . . . . . . . . . 2 . . . . . . 163 . Salvage Created 7760 | 25 15 161 . 272 203 927 . 380 666 379 . 352 339 . 1376 . 276 277 157 569 1369 17 Parts 314 | 4 2 8 . 12 1 47 . 29 21 7 . 14 17 . 43 . 13 7 . 19 67 3 Haulers Intercepted 1 | . . . . . . . . . . . . . . . 1 . . . . . . . Recyclers Shooed 3 | . . . . . . . . . 1 1 . . . . . . . . . 1 . . Parts Field Recycled 1 | . . . . . . . . . . . . . . . . . 1 . . . . . Retrieved Matter 13 | . . . . . . . . . . . . . . . . . 13 . . . . . Parts Self-Destructed 13 | . . . . . . . . . . . . . 8 . . . . 5 . . . . Prevented . | . . . . . . . . . . . . . . . . . . . . . . . Parts Restored . | . . . . . . . . . . . . . . . . . . . . . . . Kills | -11 -10 -10 -10 -9 -8 -8 -7 -7 -6 -5 -5 -5 -5 -5 -4 -4 -4 -4 -4 -3 -2 -1 ------- Run | Yrd Mat Min Exi Min Mat Gar Fac Gar Fac Fac Was Fac Upp Upp Fac Was Fac Upp Upp Res Res Acc Combat Hostiles Destroyed 136 | . 1 7 . 13 2 23 . 12 6 1 . 3 7 . 31 . 3 2 . 4 21 . Melee 1 | . . . . . . . . . . . . . . . . . . . . . 1 . Guns 71 | . 1 1 . 5 1 14 . 6 6 1 . 3 7 . 11 . 3 2 . 3 7 . Cannons 3 | . . . . . . . . . . . . . . . . . . . . 1 2 . AOE 59 | . . 6 . 8 . 9 . 6 . . . . . . 19 . . . . . 11 . Classes Destroyed 17 | 1 1 2 . 1 1 2 . . 2 2 . 1 1 . 2 . . . . . 1 . Worker 3 | . . 1 . . . . . . . . . . . . 2 . . . . . . . Builder 6 | . . . . . . . . . . . . . . . 3 . . . . . 3 . Tunneler 2 | 1 . . . . . . . . . . . . . . . . . . . . . 1 Hauler 1 | . . . . . . . . . . . . . . . 1 . . . . . . . Recycler 11 | . . . . 1 1 . . . 2 2 . 1 . . 1 . . . . 2 1 . Mechanic 2 | . . . . . . . . . . 1 . . . . 1 . . . . . . . Operator 3 | . . . . . . . . . . . . 1 . . . . . . . . 2 . Watcher 2 | . . . . . . . . . . 1 . . . . . . 1 . . . . . Swarmer 46 | . 1 3 . 10 . 7 . 8 . . . . 3 . 14 . . . . . . . Grunt 44 | . . 4 . 3 1 9 . . 3 1 . . . . 10 . . . . . 13 . Brawler 3 | . . . . . . . . . 1 . . . . . 2 . . . . . . . Duelist 2 | . . . . . . . . . . . . . . . . . . . . . 2 . Sentry 16 | . . . . . 1 3 . 4 . . . . . . 3 . 1 . . 2 2 . Demolisher 1 | . . . . . . 1 . . . . . . . . . . . . . . . . Hunter 10 | . . . . . . 3 . . 1 . . 1 . . . . 2 . . 2 1 . Programmer 10 | . . . . . . . . . 1 . . 2 . . 2 . . 2 . . 3 . Packrat 2 | . . . . . . . . . . . . . . . . . . 2 . . . . Thug 3 | . . . . . . . . . . . . . 3 . . . . . . . . . Mutant 1 | . . . . . . . . . . . . . 1 . . . . . . . . . Best Kill Streak 17 | 1 1 4 . 3 2 5 . 6 2 1 . 2 4 . 17 . 2 2 . 2 16 1 Combat Bots Only 13 | . 1 3 . 3 1 5 . 6 1 1 . 2 4 . 12 . 2 2 . 1 13 . Max Kills in Single Turn 5 | 1 1 2 . 3 1 4 . 3 1 1 . 1 3 . 5 . 2 1 . 1 3 1 Gunslinging 1 | . . . . . . . . . . . . . 1 . . . . . . . . . Exploded 4 | . . 2 . 3 . 4 . 3 . . . . . . 4 . . . . . 2 . Melee 1 | . . . . . . . . . . . . . . . . . . . . . 1 . Uniques/NPCs Destroyed . | . . . . . . . . . . . . . . . . . . . . . . . Combat | -11 -10 -10 -10 -9 -8 -8 -7 -7 -6 -5 -5 -5 -5 -5 -4 -4 -4 -4 -4 -3 -2 -1 -------- Run | Yrd Mat Min Exi Min Mat Gar Fac Gar Fac Fac Was Fac Upp Upp Fac Was Fac Upp Upp Res Res Acc Hostile Shots Fired 1016 | . 5 4 . 33 8 115 . 115 15 1 . 38 31 . 120 4 60 19 . 80 368 . Missed 326 | . . . . 11 3 26 . 42 3 1 . 9 11 . 38 1 26 4 . 23 128 . Hits 690 | . 5 4 . 22 5 89 . 73 12 . . 29 20 . 82 3 34 15 . 57 240 . Melee 5 | . . . . . . . . . . . . . . . . 3 . . . . 2 . Projectile 685 | . 5 4 . 22 5 89 . 73 12 . . 29 20 . 82 . 34 15 . 57 238 . AOE 1 | . . . . . . 1 . . . . . . . . . . . . . . . . Critical Strikes 38 | . . . . . . 2 . . . . . 3 3 . 8 3 1 . . 1 17 . Actively Blocked 1 | . . . . . . . . . . . . . . . 1 . . . . . . . Part Disruptions 2 | . . . . . . . . . . . . . . . . . . 1 . . 1 . Damage Taken 12877 | . 36 66 . 342 73 1128 . 553 212 . . 587 335 . 1658 120 647 303 . 1209 5530 78 Core 2041 | . 6 . . 84 . 170 . 53 17 . . 13 48 . 137 51 25 37 . 103 1297 . Absorbed by Shields 212 | . . . . . . 195 . 17 . . . . . . . . . . . . . . Redirected to Shielding 69 | . . . . . . . . . . . . . . . 44 . . . . . . 25 Ignored by Resistances 58 | . . . . . . . . 44 14 . . . . . . . . . . . . . Regen/Repaired (Parts) 1084 | . . . . . . . . . 54 92 . 380 . . 195 . . . . . . 363 Core Remaining (%) 79 | 100 . . . 64 . 69 . 92 98 . . . . 93 . . . . 78 92 10 100 Volleys Fired 389 | 2 5 9 . 24 3 48 2 19 28 8 7 28 22 . 54 . 17 8 1 36 64 4 Largest 4 | 2 2 2 . 2 4 4 4 4 4 3 1 4 4 . 4 . 4 4 4 4 4 1 Hottest 286 | 60 60 46 . 46 92 167 107 112 112 88 28 117 117 . 244 . 140 138 138 216 286 7 Shots Fired 967 | 4 10 12 . 42 12 180 8 61 88 12 7 50 70 . 128 . 46 23 4 87 119 4 Gun 793 | 4 10 6 . 36 12 177 8 58 80 6 1 29 70 . 104 . 38 20 4 53 77 . Cannon 101 | . . . . . . . . . 4 4 . 10 . . 11 . 8 3 . 34 27 . Launcher 42 | . . 6 . 6 . 3 . 3 . . . . . . 12 . . . . . 12 . Special 31 | . . . . . . . . . 4 2 6 11 . . 1 . . . . . 3 4 Kinetic 710 | 2 7 6 . 36 12 157 8 58 84 6 1 29 70 . 70 . 38 20 4 53 49 . Thermal 162 | 2 3 . . . . 20 . . . . . 7 . . 41 . . . . 34 55 . Explosive 42 | . . 6 . 6 . 3 . 3 . . . . . . 12 . . . . . 12 . Electromagnetic 22 | . . . . . . . . . . 4 . 3 . . 4 . 8 3 . . . . Robot Hit Streak 29 | 3 3 5 . 10 14 24 . 17 29 5 3 9 16 . 12 . 4 21 23 16 29 5 Robot Miss Streak 8 | 1 4 . . 8 . 4 . 4 5 1 2 3 3 . 6 . 4 . 1 4 3 . Penetration Max 1 | . . . . . . . . . . . 1 . . . 1 . 1 . 1 . 1 . Secondary Targets 9 | . . . . . . 1 . . . . . 1 1 . 2 . . 1 . . 3 . Max Gunslinging Chain 1 | . . . . . . 1 . . . . . 1 1 . 1 . . 1 . . 1 . Shots Hit Robots 610 | 3 3 5 . 22 13 129 . 36 49 11 5 27 43 . 85 . 20 20 3 47 84 5 Core Hits 341 | 1 2 12 . 17 2 56 2 27 19 6 . 8 17 . 74 . 10 4 2 21 61 . Critical Kills 6 | . . . . 1 . . . . 1 . . . . . 1 . 2 . . . 1 . Critical Parts Destroyed 20 | . . . . 1 1 1 1 . 4 1 . 1 3 . 1 . 2 2 . . 2 . Critical Strikes 36 | . . . . 2 1 3 1 . 5 1 . 1 3 . 6 . 4 2 . 2 5 . Burn 5 | . . . . . . 2 . . . . . . . . 3 . . . . . . . Destroy 25 | . . . . 2 . . 1 . 5 . . 1 3 . 2 . 4 2 . 2 3 . Corrupt 1 | . . . . . . . . . . . . . . . 1 . . . . . . . Smash 3 | . . . . . 1 1 . . . 1 . . . . . . . . . . . . Sever 2 | . . . . . . . . . . . . . . . . . . . . . 2 . Melee Attacks 122 | . . . . . 5 35 5 5 12 3 . . . . . . . . . . 33 24 Impact 65 | . . . . . 5 35 5 5 12 3 . . . . . . . . . . . . Slashing 57 | . . . . . . . . . . . . . . . . . . . . . 33 24 Piercing . | . . . . . . . . . . . . . . . . . . . . . . . Sneak Attacks 9 | . . . . . 1 . . . 2 2 . . . . . . . . . . 3 1 Combat Hostiles . | . . . . . . . . . . . . . . . . . . . . . . . Follow-up Attacks 2 | . . . . . . . . . . . . . . . . . . . . . 2 . Damage Inflicted 22049 | 28 33 457 . 879 267 2489 152 1229 1040 367 44 559 880 . 5388 . 543 651 122 1496 5301 124 Guns 11345 | 28 33 75 . 320 170 1615 152 743 925 78 44 407 880 . 1843 . 424 512 122 1057 1917 . Cannons 1204 | . . . . . . . . . . 115 . 148 . . 163 . 119 139 . 431 89 . Explosions 7723 | . . 382 . 542 . 584 . 486 . . . . . . 3362 . . . . . 2367 . Melee 1694 | . . . . . 97 271 . . 115 174 . . . . . . . . . . 913 124 Ramming 83 | . . . . 17 . 19 . . . . . 4 . . 20 . . . . 8 15 . Kinetic 9847 | 8 22 75 . 320 170 1356 152 743 925 78 44 407 880 . 1171 . 424 512 122 1057 1381 . Thermal 2238 | 20 11 115 . 38 . 259 . . . . . . . . 739 . . . . 431 625 . Explosive 7570 | . . 267 . 504 . 584 . 486 . . . . . . 3362 . . . . . 2367 . Electromagnetic 617 | . . . . . . . . . . 115 . 148 . . 96 . 119 139 . . . . Impact 657 | . . . . . 97 271 . . 115 174 . . . . . . . . . . . . Slashing 1037 | . . . . . . . . . . . . . . . . . . . . . 913 124 Piercing . | . . . . . . . . . . . . . . . . . . . . . . . Highest Corruption 18 | . . . . . . . . . 1 . 8 8 10 10 4 18 18 4 4 . 3 . Average Corruption 5 | . . . . . . . . . 1 . 8 8 9 10 3 11 11 3 4 . 1 . Corruption Purged 16 | . . . . . . . . . . . . . . . . . 15 . . . 1 . Corruption Blocked . | . . . . . . . . . . . . . . . . . . . . . . . Effects 111 | . . . . . . . . . 4 . 1 36 21 4 1 4 12 11 10 . 7 . Message Errors 25 | . . . . . . . . . 1 . . 8 4 1 . 1 3 4 2 . 1 . Matter Fused 32 | . . . . . . . . . 1 . . 8 9 2 1 2 2 3 3 . 1 . Heat Flow Errors 13 | . . . . . . . . . 2 . . 6 2 . . . . . 1 . 2 . Energy Discharges 11 | . . . . . . . . . . . . 4 . . . 1 2 1 2 . 1 . Parts Rejected 4 | . . . . . . . . . . . 1 3 . . . . . . . . . . Parts Fused 1 | . . . . . . . . . . . . . 1 . . . . . . . . . Data Loss (minor) 10 | . . . . . . . . . . . . 4 2 1 . . . 2 . . 1 . Data Loss (major) 7 | . . . . . . . . . . . . . 2 . . . 3 1 . . 1 . Misfires 4 | . . . . . . . . . . . . 1 1 . . . 2 . . . . . Alerts 4 | . . . . . . . . . . . . 2 . . . . . . 2 . . . Overload Shots . | . . . . . . . . . . . . . . . . . . . . . . . Overflow Damage 986 | . . . . 6 67 36 . . 45 98 . 70 . . 202 . . 107 . 10 251 94 Projectiles 187 | . . . . . . . . . . . . 70 . . . . . 107 . 10 . . Explosions 256 | . . . . 6 . . . . . . . . . . 202 . . . . . 48 . Melee 543 | . . . . . 67 36 . . 45 98 . . . . . . . . . . 203 94 Knockbacks 4 | . . . . . . 4 . . . . . . . . . . . . . . . . Impact 4 | . . . . . . 4 . . . . . . . . . . . . . . . . Kinetic . | . . . . . . . . . . . . . . . . . . . . . . . Secondary . | . . . . . . . . . . . . . . . . . . . . . . . Self-Inflicted Damage 267 | . . 18 . 91 . 26 . . . . . . . . 57 . . . . . 75 . Shots 9 | . . 1 . 2 . 1 . . . . . . . . 4 . . . . . 1 . Rammed . | . . . . . . . . . . . . . . . . . . . . . . . Targets Rammed 18 | . . . . 3 . 8 . 1 . . . 2 . . 1 . . . . 1 2 . Kicked 18 | . . . . 3 . 8 . 1 . . . 2 . . 1 . . . . 1 2 . Crushed . | . . . . . . . . . . . . . . . . . . . . . . . Highest Temperature 352 | 20 . 18 . 63 5 213 . 18 222 52 . 323 196 . 330 . 37 58 221 352 350 . Average Temperature 78 | 12 . 13 . 48 3 64 . 9 125 21 . 80 72 . 152 . 33 27 85 90 64 . Received Heat Transfer 2323 | . . 27 . 69 36 261 . 152 63 . . 18 117 . 362 . 18 . . 108 1092 . Effects 3 | . . . . . . . . . . . . 1 . . 2 . . . . . . . Energy Bleed 1 | . . . . . . . . . . . . 1 . . . . . . . . . . Interference 2 | . . . . . . . . . . . . . . . 2 . . . . . . . Siege Activations . | . . . . . . . . . . . . . . . . . . . . . . . Martial Activations . | . . . . . . . . . . . . . . . . . . . . . . . Shielding Activations . | . . . . . . . . . . . . . . . . . . . . . . . Robots Disrupted . | . . . . . . . . . . . . . . . . . . . . . . . Combat Hostiles . | . . . . . . . . . . . . . . . . . . . . . . . Robots Corrupted 5 | . . . . . 2 . . . 1 1 . . . . 1 . . . . . . . Combat Hostiles 2 | . . . . . 1 . . . . . . . . . 1 . . . . . . . Parts Fried 10 | . . . . . 1 . . . 2 3 . 4 . . . . . . . . . . Impact Corruptions 7 | . . . . . 2 1 . . 2 2 . . . . . . . . . . . . Robots Melted . | . . . . . . . . . . . . . . . . . . . . . . . Combat Hostiles . | . . . . . . . . . . . . . . . . . . . . . . . Parts Melted 6 | . . . . . . 3 . . . . . . . . 3 . . . . . . . Heat Transferred 3293 | 50 25 200 . 50 . 563 . . . . . . . . 1221 . . . . 407 777 . Parts Sabotaged . | . . . . . . . . . . . . . . . . . . . . . . . Parts Stolen . | . . . . . . . . . . . . . . . . . . . . . . . Parts Stripped . | . . . . . . . . . . . . . . . . . . . . . . . Power Chain Reactions . | . . . . . . . . . . . . . . . . . . . . . . . Alert | -11 -10 -10 -10 -9 -8 -8 -7 -7 -6 -5 -5 -5 -5 -5 -4 -4 -4 -4 -4 -3 -2 -1 ------- Run | Yrd Mat Min Exi Min Mat Gar Fac Gar Fac Fac Was Fac Upp Upp Fac Was Fac Upp Upp Res Res Acc Maximum Alert Level 3 | . . . . . . 3 3 3 2 . . . . . 2 . . . . . 2 . Low Security (%) 68 | 100 100 100 . 100 100 34 . . 57 100 100 100 . . 16 100 100 . . 100 53 100 Level 1 7 | . . . . . . 14 . . . . . . . . 66 . . . . . 6 . Level 2 18 | . . . . . . 32 83 43 42 . . . . . 16 . . . . . 40 . Level 3 5 | . . . . . . 18 16 56 . . . . . . . . . . . . . . Level 4 . | . . . . . . . . . . . . . . . . . . . . . . . Level 5 . | . . . . . . . . . . . . . . . . . . . . . . . High Security . | . . . . . . . . . . . . . . . . . . . . . . . Max Security . | . . . . . . . . . . . . . . . . . . . . . . . Peak Influence 1004 | . 35 197 . 148 39 942 722 1004 582 82 8 98 . . 561 191 83 . . 36 507 127 Initial 527 | . . . . . 21 14 494 487 527 . 8 . . . . 191 70 . . . . 127 Average 190 | . 5 60 . 48 6 408 546 739 244 10 1 16 . . 299 149 25 . . 10 216 87 Influence Increases 6384 | 5 35 397 . 394 134 988 508 637 239 168 . 169 121 . 995 . 115 50 5 164 1141 119 Destroy 0b10 Robot/C 3140 | . 20 140 . 260 80 520 220 320 120 80 . 60 100 . 620 . 60 40 . 80 420 . Destroy 0b10 Robot/NC 185 | 5 . 5 . 5 10 10 10 . 10 25 . 10 . . 40 . 5 . 5 10 30 5 Destroy Leader 508 | . . 30 . 40 32 30 50 30 30 2 . 20 10 . 92 . 22 10 . 30 80 . Allied During Kill 252 | . . . . . 4 29 123 49 . 13 . . 11 . 23 . . . . . . . Trap Triggered on 0b10 20 | . . . . . . . . . . . . . . . . . . . . . 20 . Successful Hack 198 | . . . . . 5 14 14 16 42 40 . 22 . . . . . . . . 12 33 Disable Machine 495 | . . 165 . 15 . 60 75 15 . . . 30 . . 45 . . . . . 30 60 Anti-Garrison Action 350 | . . . . . . 250 . 100 . . . . . . . . . . . . . . Destroy Structure 816 | . . 57 . 59 3 75 16 32 7 8 . 12 . . 160 . 28 . . 44 294 21 Partial Spotted 15 | . . . . . . . . . . . . 15 . . . . . . . . . . Lose Combat Pursuer 405 | . 15 . . 15 . . . 75 30 . . . . . 15 . . . . . 255 . Influence Decreases 6344 | 5 35 274 123 338 168 68 754 329 1242 145 24 145 145 . 448 446 188 36 47 162 931 291 Entered New Map 1821 | . . . 123 . 35 8 448 209 477 1 16 . 10 . . 356 31 11 9 . 2 85 Time Decay 3064 | 5 35 274 . 338 113 . 206 . 430 104 8 135 125 . 358 50 137 25 38 142 335 206 Lost Part 474 | . . . . . . 60 . . 10 . . 10 10 . 30 40 20 . . 20 274 . Lost Ally 410 | . . . . . 20 . 100 120 50 40 . . . . 60 . . . . . 20 . Purge Threat 575 | . . . . . . . . . 275 . . . . . . . . . . . 300 . Squads Dispatched 34 | . 1 . . . 3 . 3 . 6 1 . 3 . . 3 . . . . 3 10 1 Investigation 7 | . . . . . 1 . 1 . 1 . . . . . 1 . . . . 2 1 . Extermination 11 | . . . . . . . 1 . 2 . . 1 . . 2 . . . . 1 3 1 Reinforcement 12 | . 1 . . . 1 . 1 . 2 1 . 2 . . . . . . . . 4 . Assault 3 | . . . . . . . . . 1 . . . . . . . . . . . 2 . Garrison 1 | . . . . . 1 . . . . . . . . . . . . . . . . . Intercept . | . . . . . . . . . . . . . . . . . . . . . . . Searches Triggered . | . . . . . . . . . . . . . . . . . . . . . . . Construction Impeded 2 | . . . . . . . . . . 1 . . . . . . . . . . 1 . Haulers Reinforced . | . . . . . . . . . . . . . . . . . . . . . . . Active Scanning Responses . | . . . . . . . . . . . . . . . . . . . . . . . Cargo Convoy Interrupts . | . . . . . . . . . . . . . . . . . . . . . . . Stealth | -11 -10 -10 -10 -9 -8 -8 -7 -7 -6 -5 -5 -5 -5 -5 -4 -4 -4 -4 -4 -3 -2 -1 --------- Run | Yrd Mat Min Exi Min Mat Gar Fac Gar Fac Fac Was Fac Upp Upp Fac Was Fac Upp Upp Res Res Acc Distress Signals 10 | . 1 . . . 1 . . . 1 1 . . . . 2 . . . . . 4 . Communications Jammed 5 | . . . . . . . . . 3 . . . . . 2 . . . . . . . Distress Signals 5 | . . . . . . . . . 3 . . . . . 2 . . . . . . . Times Spotted 225 | . 4 4 . 14 5 21 3 14 12 7 6 19 11 . 31 4 5 2 . 7 54 2 Peak Tracking Total 13 | . 2 2 . 3 2 5 1 5 5 2 2 9 5 . 9 4 2 2 . 3 13 1 Tactical Retreats 14 | . 1 . . 1 . . . 2 2 . . . . . 1 . . . . . 7 . Traps | -11 -10 -10 -10 -9 -8 -8 -7 -7 -6 -5 -5 -5 -5 -5 -4 -4 -4 -4 -4 -3 -2 -1 ------- Run | Yrd Mat Min Exi Min Mat Gar Fac Gar Fac Fac Was Fac Upp Upp Fac Was Fac Upp Upp Res Res Acc Traps Triggered 23 | . . . . . . 8 . 2 1 5 . 3 . . 1 . . . . . 2 1 Indirectly . | . . . . . . . . . . . . . . . . . . . . . . . Trap Hack Attempts . | . . . . . . . . . . . . . . . . . . . . . . . Triggered . | . . . . . . . . . . . . . . . . . . . . . . . Disarmed . | . . . . . . . . . . . . . . . . . . . . . . . Reprogrammed . | . . . . . . . . . . . . . . . . . . . . . . . Reused 2 | . . . . . . . . . . . . . . . . . . . . . 2 . Traps Reconfigurated 5 | . . . . . . 5 . . . . . . . . . . . . . . . . Traps Extracted 6 | . . . . . . 6 . . . . . . . . . . . . . . . . Installed 6 | . . . . . . 4 . . . . . . . . . . . . . . 2 . Triggered 2 | . . . . . . . . . . . . . . . . . . . . . 2 . Most Traps Carried 4 | . . . . . . 4 4 4 4 4 4 4 4 4 4 4 4 4 4 4 4 . Machines | -11 -10 -10 -10 -9 -8 -8 -7 -7 -6 -5 -5 -5 -5 -5 -4 -4 -4 -4 -4 -3 -2 -1 ---------- Run | Yrd Mat Min Exi Min Mat Gar Fac Gar Fac Fac Was Fac Upp Upp Fac Was Fac Upp Upp Res Res Acc Machines Disabled 38 | . . 11 . 1 . 7 5 3 . . . 2 . . 3 . . . . . 2 4 Max in Single Turn 9 | . . 9 . 1 . 1 1 1 . . . 1 . . 1 . . . . . 1 1 Garrison Access 6 | . . . . . . . . . 2 1 . 2 . . . . . . . . . 1 Garrison Relay 3 | . . . . . . 1 . 2 . . . . . . . . . . . . . . Machines Repaired . | . . . . . . . . . . . . . . . . . . . . . . . Machines Dismantled 1 | . . . . . . . . . . . . . . . . . . . . . . 1 Machines Sabotaged . | . . . . . . . . . . . . . . . . . . . . . . . Overloaded Fab Kills . | . . . . . . . . . . . . . . . . . . . . . . . Hacking | -11 -10 -10 -10 -9 -8 -8 -7 -7 -6 -5 -5 -5 -5 -5 -4 -4 -4 -4 -4 -3 -2 -1 --------- Run | Yrd Mat Min Exi Min Mat Gar Fac Gar Fac Fac Was Fac Upp Upp Fac Was Fac Upp Upp Res Res Acc Machines Accessed 55 | . . . 2 1 4 1 6 1 13 5 . 6 1 . 3 . 1 . . 3 4 4 Terminals 21 | . . . . . 1 1 2 1 6 2 . 1 . . 1 . 1 . . 2 2 1 Fabricators 6 | . . . . . . . 2 . 3 . . . . . . . . . . . 1 . Repair Stations 7 | . . . . . . . . . 1 1 . 2 . . 1 . . . . . . 2 Recycling Units 4 | . . . . . 1 . 1 . 1 . . . . . . . . . . 1 . . Scanalyzers 5 | . . . . . 1 . . . . 1 . 1 . . 1 . . . . . 1 . Garrison Access 8 | . . . . . 1 . 1 . 2 1 . 2 . . . . . . . . . 1 Total Hacks 154 | . . . 2 1 13 2 10 1 37 24 . 22 1 . 5 . 2 . . 9 12 13 Successful 85 | . . . 2 1 8 1 2 1 21 14 . 19 1 . 1 . . . . 2 8 4 Failed 67 | . . . . . 5 1 8 . 16 10 . 2 . . 4 . 2 . . 7 3 9 Catastrophic 13 | . . . . . . . 5 . 2 . . . . . 2 . 1 . . 1 1 1 Database Lockouts 2 | . . . . . . . . . . . . 1 . . . . . . . . 1 . Manual 47 | . . . 1 . 6 1 5 . 17 7 . . . . 2 . 2 . . 2 4 . Terminals 66 | . . . . . 2 2 4 1 21 13 . 2 . . 1 . 2 . . 7 7 4 Fabricators 11 | . . . . . . . 2 . 7 . . . . . . . . . . . 2 . Repair Stations 29 | . . . . . . . . . 3 4 . 13 . . 2 . . . . . . 7 Recycling Units 7 | . . . . . 2 . 1 . 2 . . . . . . . . . . 2 . . Scanalyzers 17 | . . . . . 4 . . . . 5 . 3 . . 2 . . . . . 3 . Garrison Access 20 | . . . . . 5 . 3 . 4 2 . 4 . . . . . . . . . 2 Terminal Hacks 23 | . . . 2 1 . 1 1 1 7 5 . 1 1 . . . . . . . 3 . Record 1 | . . . 1 . . . . . . . . . . . . . . . . . . . Robot Analysis 3 | . . . . . . . . . 3 . . . . . . . . . . . . . Prototype ID Bank 1 | . . . . . . . . . . 1 . . . . . . . . . . . . Open Door 2 | . . . . 1 . . . . . . . . 1 . . . . . . . . . Open DSF 2 | . . . . . . . . . 1 . . 1 . . . . . . . . . . Level Access Points 2 | . . . . . . . . . 1 1 . . . . . . . . . . . . Emergency Access Points 1 | . . . . . . 1 . . . . . . . . . . . . . . . . Scanalyzer Index 1 | . . . . . . . . . . 1 . . . . . . . . . . . . Garrison Index 1 | . . . . . . . . . . 1 . . . . . . . . . . . . Unreport Threat 2 | . . . . . . . . . . . . . . . . . . . . . 2 . Locate Traps 1 | . . . . . . . 1 . . . . . . . . . . . . . . . Maintenance Status 1 | . . . . . . . . . 1 . . . . . . . . . . . . . Recall Extermination 1 | . . . . . . . . . . . . . . . . . . . . . 1 . Recall Assault 1 | . . . . . . . . . 1 . . . . . . . . . . . . . Zone Layout 1 | . . . . . . . . . . 1 . . . . . . . . . . . . Security Stations 1 | . . . . . . . . 1 . . . . . . . . . . . . . . Proto ID Catalog 1 | . . . 1 . . . . . . . . . . . . . . . . . . . Fabricator Hacks 3 | . . . . . . . . . 3 . . . . . . . . . . . . . Network Status 2 | . . . . . . . . . 2 . . . . . . . . . . . . . Build 1 | . . . . . . . . . 1 . . . . . . . . . . . . . Repair Station Hacks 18 | . . . . . . . . . 1 3 . 12 . . . . . . . . . 2 Scan Component 10 | . . . . . . . . . 1 2 . 6 . . . . . . . . . 1 Repair 8 | . . . . . . . . . . 1 . 6 . . . . . . . . . 1 Recycling Unit Hacks 3 | . . . . . 1 . . . 1 . . . . . . . . . . 1 . . Retrieve Components 3 | . . . . . 1 . . . 1 . . . . . . . . . . 1 . . Scanalyzer 10 | . . . . . 3 . . . . 3 . 2 . . . . . . . . 2 . Retrieve Study 10 | . . . . . 3 . . . . 3 . 2 . . . . . . . . 2 . Garrison Access Hacks 14 | . . . . . 1 . 1 . 4 2 . 4 . . . . . . . . . 2 Unlock Access 2 | . . . . . 1 . 1 . . . . . . . . . . . . . . . Seal Access 6 | . . . . . . . . . 2 1 . 2 . . . . . . . . . 1 Coupler Status 6 | . . . . . . . . . 2 1 . 2 . . . . . . . . . 1 Unauthorized Hacks 14 | . . . . . 3 . . . 5 1 . . . . 1 . . . . 1 3 . Terminals 5 | . . . . . 1 . . . 1 1 . . . . . . . . . 1 1 . Botnet 5 | . . . . . 1 . . . 1 1 . . . . . . . . . 1 1 . Fabricators 5 | . . . . . . . . . 3 . . . . . . . . . . . 2 . Liberate 3 | . . . . . . . . . 2 . . . . . . . . . . . 1 . Fabnet 1 | . . . . . . . . . . . . . . . . . . . . . 1 . Haulers 1 | . . . . . . . . . 1 . . . . . . . . . . . . . Repair Stations 2 | . . . . . . . . . 1 . . . . . 1 . . . . . . . Patch 2 | . . . . . . . . . 1 . . . . . 1 . . . . . . . Recycling Units . | . . . . . . . . . . . . . . . . . . . . . . . Scanalyzers . | . . . . . . . . . . . . . . . . . . . . . . . Garrison Access 2 | . . . . . 2 . . . . . . . . . . . . . . . . . Reprogram 1 | . . . . . 1 . . . . . . . . . . . . . . . . . Intercept 1 | . . . . . 1 . . . . . . . . . . . . . . . . . Data Cores Recovered . | . . . . . . . . . . . . . . . . . . . . . . . Used . | . . . . . . . . . . . . . . . . . . . . . . . Hacking Detections 42 | . . . . . 2 1 6 1 11 5 . 2 . . 3 . 1 . . 3 3 4 Full Trace Events 3 | . . . . . . . 1 . . . . . . . . . . . . 2 . . Feedback Events . | . . . . . . . . . . . . . . . . . . . . . . . Feedback Blocked . | . . . . . . . . . . . . . . . . . . . . . . . Robot Schematics Acquired . | . . . . . . . . . . . . . . . . . . . . . . . Robots Built . | . . . . . . . . . . . . . . . . . . . . . . . Authchips . | . . . . . . . . . . . . . . . . . . . . . . . Time . | . . . . . . . . . . . . . . . . . . . . . . . Total Robot Build Rating . | . . . . . . . . . . . . . . . . . . . . . . . Part Schematics Acquired . | . . . . . . . . . . . . . . . . . . . . . . . Parts Built 2 | . . . . . . . . . 2 . . . . . . . . . . . . . Authchips . | . . . . . . . . . . . . . . . . . . . . . . . Time 58 | . . . . . . . . . 58 . . . . . . . . . . . . . Total Part Build Rating 14 | . . . . . . . . . 14 . . . . . . . . . . . . . Part Studies Acquired 8 | . . . . . 2 . . . . 3 . 1 . . . . . . . . 2 . Parts Repaired 8 | . . . . . . . . . . 1 . 6 . . . . . . . . . 1 Time 307 | . . . . . . . . . . 25 . 258 . . . . . . . . . 24 Parts Recycled . | . . . . . . . . . . . . . . . . . . . . . . . Recycled Matter . | . . . . . . . . . . . . . . . . . . . . . . . Retrieved Matter . | . . . . . . . . . . . . . . . . . . . . . . . Retrieved Components 6 | . . . . . 2 . . . 3 . . . . . . . . . . 1 . . Parts Scanalyzed . | . . . . . . . . . . . . . . . . . . . . . . . Part Schematics Acquired . | . . . . . . . . . . . . . . . . . . . . . . . Parts Damaged . | . . . . . . . . . . . . . . . . . . . . . . . Bothacking | -11 -10 -10 -10 -9 -8 -8 -7 -7 -6 -5 -5 -5 -5 -5 -4 -4 -4 -4 -4 -3 -2 -1 ------------ Run | Yrd Mat Min Exi Min Mat Gar Fac Gar Fac Fac Was Fac Upp Upp Fac Was Fac Upp Upp Res Res Acc Used RIF Installer 2 | . . . . . . 1 . 1 . . . . . . . . . . . . . . Coupler Efficiency 1 | . . . . . . . . 1 . . . . . . . . . . . . . . Robots Hacked 20 | . . . . . . . . . 1 2 6 6 . . 1 . . . . . 2 2 Non-combat 7 | . . . . . . . . . 1 . . 2 . . . . . . . . 2 2 Combat 13 | . . . . . . . . . . 2 6 4 . . 1 . . . . . . . Robot Hacks Applied 23 | . . . . . . . . . 3 2 6 6 . . 1 . . . . . 2 3 ignore_repairs 2 | . . . . . . . . . . . . . . . . . . . . . 2 . drop_inventory 2 | . . . . . . . . . . . . 2 . . . . . . . . . . purge_threat 2 | . . . . . . . . . 2 . . . . . . . . . . . . . map_route 1 | . . . . . . . . . . . . . . . . . . . . . . 1 ignore_targets 6 | . . . . . . . . . . . 6 . . . . . . . . . . . amplify_resonance 2 | . . . . . . . . . . . . 2 . . . . . . . . . . overwrite_iff 2 | . . . . . . . . . . . . 1 . . 1 . . . . . . . formatsys_low 2 | . . . . . . . . . 1 . . . . . . . . . . . . 1 formatsys_high 4 | . . . . . . . . . . 2 . 1 . . . . . . . . . 1 Relay Couplers Released 17 | . . . . . . 3 . 8 . 1 . 2 . . . . . . . . . 3 Machine Destruction 17 | . . . . . . 3 . 8 . 1 . 2 . . . . . . . . . 3 Attached 8 | . . . . . . . . . 1 1 1 2 . . . . . . . . . 3 Fabnet Peak Effective % 3 | . . . . . . . . . . . . . . . . . . . . . . 3 Robots Rewired 13 | . . . . . . 11 . . . . . . 2 . . . . . . . . . Allies Hacked 1 | . . . . . . . 1 . . . . . . . . . . . . . . . Hacks Repelled . | . . . . . . . . . . . . . . . . . . . . . . . Allies | -11 -10 -10 -10 -9 -8 -8 -7 -7 -6 -5 -5 -5 -5 -5 -4 -4 -4 -4 -4 -3 -2 -1 -------- Run | Yrd Mat Min Exi Min Mat Gar Fac Gar Fac Fac Was Fac Upp Upp Fac Was Fac Upp Upp Res Res Acc Total Allies 25 | . . . . 1 1 11 . . 3 2 . 2 2 . 1 . . . . . . 2 Largest Group 11 | . . . . 1 1 11 11 6 2 2 . 1 3 3 3 . . . . . . 2 Highest-Rated Group 167 | . . . . 31 31 167 167 93 74 98 . 49 99 99 99 . . . . . . 51 Highest-Rated Ally 49 | . . . . 31 31 21 21 21 37 49 . 49 49 49 49 . . . . . . 31 Total Orders 8 | . . . . . . . . . . . . . . 2 . . . 3 . . 1 2 STAY 2 | . . . . . . . . . . . . . . 1 . . . . . . . 1 FOLLOW 2 | . . . . . . . . . . . . . . 1 . . . . . . . 1 EXPLORE 3 | . . . . . . . . . . . . . . . . . . 2 . . 1 . RETURN 1 | . . . . . . . . . . . . . . . . . . 1 . . . . Ally Attacks 129 | . . . . . 12 13 49 16 5 19 . 2 9 . 4 . . . . . . . Total Damage 3023 | . . . . . 177 126 1519 314 92 444 . 12 248 . 91 . . . . . . . Kills 32 | . . . . . 3 3 13 4 . 4 . . 5 . . . . . . . . . Allies Corrupted . | . . . . . . . . . . . . . . . . . . . . . . . Allies Melted . | . . . . . . . . . . . . . . . . . . . . . . . Intel | -11 -10 -10 -10 -9 -8 -8 -7 -7 -6 -5 -5 -5 -5 -5 -4 -4 -4 -4 -4 -3 -2 -1 ------- Run | Yrd Mat Min Exi Min Mat Gar Fac Gar Fac Fac Was Fac Upp Upp Fac Was Fac Upp Upp Res Res Acc Active Infowar (turns) 7990 | . . . . . . . 196 537 1117 486 101 1111 620 81 831 8 405 596 320 537 681 363 Optics 2337 | . . . . . . . . . . . . . . . . . 405 596 320 537 479 . Terrain 549 | . . . . . . . . . . . . 1 185 . . . . . . . . 363 Cloaking 456 | . . . . . . . . . . . . . . . . . . . . . 456 . Jamming 6661 | . . . . . . . 196 537 1117 486 101 1111 620 81 831 8 . 341 320 537 375 . Robot Analysis Total 3 | . . . . . . . . . 3 . . . . . . . . . . . . . Derelict Logs Recovered 5 | . . 2 . 2 . . . . . . . . . . . . . . 1 . . . Drone Launches 4 | . . . . . . . . . . . . . . . . . . 1 . . 3 . Drone Recoveries 1 | . . . . . . . . . . . . . . . . . . . . . 1 . Exploration | -11 -10 -10 -10 -9 -8 -8 -7 -7 -6 -5 -5 -5 -5 -5 -4 -4 -4 -4 -4 -3 -2 -1 ------------- Run | Yrd Mat Min Exi Min Mat Gar Fac Gar Fac Fac Was Fac Upp Upp Fac Was Fac Upp Upp Res Res Acc Turns Passed 15202 | 69 247 1233 657 1176 570 1866 422 537 1117 606 101 1125 620 81 846 119 496 596 320 537 1438 423 Spaces Moved 7803 | 45 164 625 345 567 235 784 257 291 668 354 81 621 427 63 339 95 198 287 166 220 687 284 Core 181 | 6 . . . . . . . . . . . . . . . . . . . . 73 102 Treads . | . . . . . . . . . . . . . . . . . . . . . . . Legs 7622 | 39 164 625 345 567 235 784 257 291 668 354 81 621 427 63 339 95 198 287 166 220 614 182 Wheels . | . . . . . . . . . . . . . . . . . . . . . . . Hover . | . . . . . . . . . . . . . . . . . . . . . . . Flight . | . . . . . . . . . . . . . . . . . . . . . . . Fastest Speed 50 | 50 120 190 190 190 175 120 120 120 120 105 105 105 105 112 112 112 120 120 190 190 50 50 Average Speed 148 | 110 126 190 190 190 178 145 120 120 121 132 105 125 119 113 169 121 197 165 190 190 135 95 Slowest Speed 260 | 120 190 190 190 190 190 182 120 190 190 190 105 175 175 122 232 175 260 190 190 190 190 150 Overloaded Moves . | . . . . . . . . . . . . . . . . . . . . . . . Propulsion Burnouts . | . . . . . . . . . . . . . . . . . . . . . . . Robots Hopped . | . . . . . . . . . . . . . . . . . . . . . . . Potential Cave-ins 17 | . . . . . . . . . 3 . . . . . . . . . . . 11 3 Cave-ins Triggered . | . . . . . . . . . . . . . . . . . . . . . . . Exploration Rate (%) 37 | 4 34 99 67 99 15 82 8 39 21 11 84 18 57 8 9 72 5 54 22 9 28 10 Regions Visited 22 Branch Regions 7 Pre-discovered Areas 3 | . . 1 1 . . . . . . . . . . . . . . . 1 . . . Known Exits Taken 12 | . . . . 1 1 . 1 . 1 . . 1 1 1 . . 1 1 1 1 1 . Unknown Exits Taken 4 | 1 1 1 1 . . . . . . . . . . . . . . . . . . . Scrap Searched 8 | . . 2 . 1 . . . . . . . . 2 1 . . . 2 . . . . Spaces Dug 180 | . . 21 . 35 3 17 . 8 4 . . 4 . . 4 . . . . 20 54 10 Terrain Destroyed 517 | . . 65 . 77 3 20 . 29 10 . . 5 3 . 83 . 20 14 3 28 147 10 Melee 41 | . . . . . 3 5 . 3 4 . . . . . . . . . . . 16 10 Projectile 121 | . . . . . . . . 2 6 . . 5 3 . 15 . 20 14 3 27 26 . AOE 353 | . . 65 . 77 . 15 . 23 . . . . . . 68 . . . . . 105 . Terrain Rammed . | . . . . . . . . . . . . . . . . . . . . . . . Walls Destroyed . | . . . . . . . . . . . . . . . . . . . . . . . Machines Disabled . | . . . . . . . . . . . . . . . . . . . . . . . Actions | -11 -10 -10 -10 -9 -8 -8 -7 -7 -6 -5 -5 -5 -5 -5 -4 -4 -4 -4 -4 -3 -2 -1 --------- Run | Yrd Mat Min Exi Min Mat Gar Fac Gar Fac Fac Was Fac Upp Upp Fac Was Fac Upp Upp Res Res Acc Total 10448 | 57 199 655 348 625 370 1314 356 425 893 475 92 922 487 72 517 102 269 392 169 277 1053 379 Wait 1392 | 1 7 6 . 8 108 244 72 82 155 71 2 240 9 4 49 . 23 88 1 6 178 38 Move 7783 | 44 163 624 344 566 234 783 257 290 667 354 80 620 426 62 339 94 197 286 165 219 686 283 Hop . | . . . . . . . . . . . . . . . . . . . . . . . Pick Up 87 | 4 10 3 2 4 7 11 3 4 5 9 1 3 . 1 7 1 2 . . 2 8 . Fast Attach 141 | 6 3 . . . . 2 5 . 6 12 1 12 7 1 20 . 16 4 1 5 32 8 Attach 36 | . . . . . 4 4 . . 1 1 . . . . 8 1 3 1 . . 9 4 Detach 31 | . 2 . . . . . . . 2 . . 3 . . 7 2 3 2 . . 9 1 Swap 136 | . 2 10 . 11 5 28 5 9 11 7 1 10 2 2 11 . 2 2 . 3 15 . Drop 132 | . 7 3 2 9 4 10 7 5 5 10 . 3 6 2 21 4 6 1 1 5 21 . Fire 389 | 2 5 9 . 24 3 48 2 19 28 8 7 28 22 . 54 . 17 8 1 36 64 4 Melee 116 | . . . . . 5 35 5 5 12 3 . . . . . . . . . . 27 24 Ram . | . . . . . . . . . . . . . . . . . . . . . . . Kick 18 | . . . . 3 . 8 . 1 . . . 2 . . 1 . . . . 1 2 . Crush . | . . . . . . . . . . . . . . . . . . . . . . . Escape Stasis 49 | . . . . . . 39 . 10 . . . . . . . . . . . . . . Rewire 116 | . . . . . . 98 . . 1 . . 1 15 . . . . . . . . 1 Trap 6 | . . . . . . 4 . . . . . . . . . . . . . . 2 . Miscellaneous 16 | . . . . . . . . . . . . . . . . . . . . . . 16 Route ------- -11/Scrapyard -10/Materials -10/Mines (discovered 3 exits: [*Mat x2] / *Exi) -10/Exiles -9/Mines (discovered 2 exits: *Mat x2) -8/Materials (discovered 2 exits: Fac / Gar) -8/Garrison (discovered 3 exits: *Fac x3) -7/Factory (discovered 2 exits: *Fac / Gar) -7/Garrison -6/Factory (discovered 4 exits: *Fac x4) -5/Factory (discovered 4 exits: *Fac x4) -5/Waste -5/Factory -5/Upper Caves -5/Upper Caves -4/Factory -4/Waste -4/Factory -4/Upper Caves -4/Upper Caves -3/Research -2/Research -1/Access To Epsilon Eridani History --------- Turn | Location | Event 4 | -11/Scrapyard | Discovered new exit (range 14) 70 | -11/Scrapyard | Entered Materials 263 | -10/Materials | Discovered new exit (range 5) 307 | -10/Materials | Build established: Mutant 317 | -10/Materials | Entered Mines 322 | -10/Mines | Assembled infested the area 356 | -10/Mines | Met 8R-AWN 480 | -10/Mines | Discovered new exit (range 13) 624 | -10/Mines | Learned Materials interactive machine intel 763 | -10/Mines | Discovered new exit (range 5) 894 | -10/Mines | Learned location of 1 exit from Materials 1026 | -10/Mines | Learned location of Storage (-7) 1144 | -10/Mines | Discovered new exit (range 15) 1550 | -10/Mines | Entered Exiles 1600 | -10/Exiles | Welcomed by 8R-AWN 1630 | -10/Exiles | Met EX-HEX 1712 | -10/Exiles | Met EX-DEC 1822 | -10/Exiles | Learned location of Zion (-7) 1856 | -10/Exiles | Met EX-BIN 1883 | -10/Exiles | Aligned with FarCom system 1885 | -10/Exiles | Given EX-Vault access code 1930 | -10/Exiles | Opened EX-Vault 1942 | -10/Exiles | Found Trap Reconfigurator 1981 | -10/Exiles | Warned to stay clear of 0b10 Research branches 2119 | -10/Exiles | Learned about 8R-AWN's background 2175 | -10/Exiles | Discovered new exit (range 15) 2207 | -10/Exiles | Left Exiles lab with Trap Reconfigurator 2207 | -10/Exiles | Entered Mines 2251 | -9/Mines | Learned Materials non-interactive machine intel 2625 | -9/Mines | Discovered new exit (range 13) 2791 | -9/Mines | Identified exit to Materials 2993 | -9/Mines | Met a Derelict who couldn't figure out how to use a Trap Extractor 3271 | -9/Mines | Escorted by a lone wolf Derelict 3383 | -9/Mines | Entered Materials 3383 | -8/Materials | Accompanied by 1 ally 3383 | -8/Materials | Evolved 4 slots: Utility x2, Weapon x2 3384 | -8/Materials | Identified exit to Factory 3385 | -8/Materials | Loaded intel: 35 non-interactive machine locations 3386 | -8/Materials | Loaded intel: 19 interactive machine locations 3682 | -8/Materials | Build established: Scavenger-Tank 3924 | -8/Materials | Identified exit to Garrison 3931 | -8/Materials | Garrison activated, responded to threat 3953 | -8/Materials | Entered Garrison 4065 | -8/Garrison | Triggered checkpoint 4213 | -8/Garrison | Build established: Scavenger-Skirmisher 4598 | -8/Garrison | Triggered checkpoint 4698 | -8/Garrison | Triggered checkpoint 4720 | -8/Garrison | Discovered exit to Factory (range 8) 4759 | -8/Garrison | Triggered checkpoint 4799 | -8/Garrison | Build established: Scavenger-Tank 4853 | -8/Garrison | Triggered checkpoint 5008 | -8/Garrison | Lost 4 parts (1p1n2w) 5106 | -8/Garrison | Build established: Scavenger-Skirmisher 5122 | -8/Garrison | Garrison Relay disabled 5477 | -8/Garrison | Triggered checkpoint 5542 | -8/Garrison | Discovered exit to Factory (range 10) 5608 | -8/Garrison | Build established: Commander-Skirmisher 5768 | -8/Garrison | Installed Relay Interface Framework 5788 | -8/Garrison | Discovered exit to Factory (range 10) 5819 | -8/Garrison | Entered Factory 5819 | -7/Factory | Accompanied by 11 allies 5819 | -7/Factory | Evolved 2 slots: Utility x2 5914 | -7/Factory | Discovered new exit (range 12) 6123 | -7/Factory | Build established: Commander-Gunner 6144 | -7/Factory | Lost 4 allies 6213 | -7/Factory | Identified exit to Garrison 6241 | -7/Factory | Entered Garrison 6241 | -7/Garrison | Accompanied by 6 allies 6257 | -7/Garrison | Expanded RIF knowledge: Coupler Efficiency 6367 | -7/Garrison | Triggered checkpoint 6409 | -7/Garrison | Garrison Relay disabled 6533 | -7/Garrison | Lost 5 allies 6586 | -7/Garrison | Triggered checkpoint 6605 | -7/Garrison | Triggered checkpoint 6698 | -7/Garrison | Discovered new exit (range 8) 6710 | -7/Garrison | Learned Factory security intel 6715 | -7/Garrison | Triggered checkpoint 6737 | -7/Garrison | Garrison Relay disabled 6778 | -7/Garrison | Entered Factory 6778 | -6/Factory | Evolved 2 slots: Utility x2 7128 | -6/Factory | First assault squad dispatched 7270 | -6/Factory | Noticed a derelict Sapper rigging charges 7410 | -6/Factory | Identified exit to Factory 7796 | -6/Factory | Fabricated HERF Cannon (x2) 7895 | -6/Factory | Entered another Factory area 7895 | -5/Factory | Evolved 2 slots: Power x1, Utility x1 8021 | -5/Factory | Repaired Flexi-carbon Leg 8042 | -5/Factory | Allied Derelicts emerged from ambush trap array 8214 | -5/Factory | Identified exit to Factory 8443 | -5/Factory | Lost 3 allies 8501 | -5/Factory | Sucked down chute 8501 | -5/Factory | Entered Waste 8511 | -5/Waste | Build established: Hacker-Skirmisher 8512 | -5/Waste | Found Adv. Powered Armor 8516 | -5/Waste | EMP discharged 8519 | -5/Waste | Spotted C-40 Crusher 8524 | -5/Waste | Spotted C-40 Crusher 8536 | -5/Waste | Spotted C-40 Crusher 8541 | -5/Waste | Spotted C-40 Crusher 8551 | -5/Waste | Spotted C-40 Crusher 8563 | -5/Waste | Spotted C-40 Crusher 8593 | -5/Waste | Discovered new exit (range 10) 8601 | -5/Waste | Identified exit to Factory 8602 | -5/Waste | Entered Factory 8653 | -5/Factory | Repaired Gauss Rifle+ 8698 | -5/Factory | Repaired Gauss Rifle+? 8816 | -5/Factory | Repaired Adv. Powered Armor 8867 | -5/Factory | Repaired Flexi-carbon Leg+? 8959 | -5/Factory | Repaired Lgt. Deuterium Engine 9001 | -5/Factory | Central database locked down 9129 | -5/Factory | Repaired Transmission Jammer 9691 | -5/Factory | Discovered new exit (range 12) 9721 | -5/Factory | Identified exit to Upper Caves 9727 | -5/Factory | Entered Upper Caves 9727 | -5/Upper Caves | Accompanied by 1 ally 9996 | -5/Upper Caves | Attacked by a faux Warlord 10000 | -5/Upper Caves | System corruption reached 10% 10031 | -5/Upper Caves | Lost 3 parts (1p2w) 10215 | -5/Upper Caves | Discovered new exit (range 13) 10338 | -5/Upper Caves | Identified exit to Upper Caves 10347 | -5/Upper Caves | Entered another Upper Caves area 10347 | -5/Upper Caves | Accompanied by 3 allies 10349 | -5/Upper Caves | Discovered exit to Factory (range 15) 10385 | -5/Upper Caves | Build established: Scientist-Gunner 10428 | -5/Upper Caves | Entered Factory 10428 | -4/Factory | Accompanied by 3 allies 10428 | -4/Factory | Evolved 2 slots: Utility x2 10509 | -4/Factory | Lost 3 allies 10514 | -4/Factory | Destroyed 9 combat bots 11229 | -4/Factory | Destroyed 12 combat bots 11263 | -4/Factory | Build established: Scavenger-Tank 11274 | -4/Factory | Sucked down chute 11274 | -4/Factory | Entered Waste 11289 | -4/Waste | EMP discharged 11289 | -4/Waste | System corruption reached 10% 11306 | -4/Waste | Spotted C-40 Crusher 11331 | -4/Waste | Spotted C-40 Crusher 11335 | -4/Waste | Spotted C-40 Crusher 11336 | -4/Waste | Crushed by Compactor (1 part destroyed, 2 dropped) 11339 | -4/Waste | Spotted C-40 Crusher 11346 | -4/Waste | Crushed by Compactor (1 part destroyed, 2 dropped) 11347 | -4/Waste | Crushed by Compactor (1 part destroyed, 1 dropped) 11378 | -4/Waste | Lost 4 parts (2u2w) 11382 | -4/Waste | Spotted C-40 Crusher 11383 | -4/Waste | Discovered new exit (range 10) 11389 | -4/Waste | EMP discharged 11392 | -4/Waste | Identified exit to Factory 11393 | -4/Waste | Entered Factory 11527 | -4/Factory | Discovered new exit (range 5) 11534 | -4/Factory | Identified exit to Upper Caves 11743 | -4/Factory | Build established: Scavenger-Gunner 11889 | -4/Factory | Entered Upper Caves 11890 | -4/Upper Caves | Encountered a Warlord checkpoint 12406 | -4/Upper Caves | Discovered new exit (range 7) 12416 | -4/Upper Caves | Identified exit to Upper Caves 12485 | -4/Upper Caves | Entered another Upper Caves area 12718 | -4/Upper Caves | Learned location of Quarantine (-2) 12771 | -4/Upper Caves | Discovered new exit (range 8) 12788 | -4/Upper Caves | Identified exit to Research 12805 | -4/Upper Caves | Entered Research 12805 | -3/Research | Evolved 2 slots: Utility x2 13302 | -3/Research | Discovered new exit (range 19) 13340 | -3/Research | Identified exit to Research 13342 | -3/Research | Entered another Research area 13342 | -2/Research | Evolved 2 slots: Utility x2 13583 | -2/Research | Central database locked down 13862 | -2/Research | Lost 5 parts (3u2w) 13866 | -2/Research | Found Prototype Device 13866 | -2/Research | Identified Exp. EM Shield 14009 | -2/Research | Found Fusion Bomb Launcher 14013 | -2/Research | Lost 7 parts (2p2u3w) 14059 | -2/Research | Lost 5 parts (1p2n2u) 14064 | -2/Research | Destroyed 13 combat bots 14132 | -2/Research | Lost 3 parts (1p1u1w) 14342 | -2/Research | First assault squad dispatched 14565 | -2/Research | Spotted B-90 Cyclops 14604 | -2/Research | Core integrity fell below 50% 14738 | -2/Research | Core integrity fell below 20% 14767 | -2/Research | Lost 10 parts (2p1n6u1w) 14773 | -2/Research | Discovered new exit (range 12) 14778 | -2/Research | Identified exit to Access 14780 | -2/Research | Entered Access 14780 | -1/Access | Evolved 2 slots: Utility x2 14783 | -1/Access | Build established: Hacker-Mutant 14975 | -1/Access | Repaired Centrium Leg 15125 | -1/Access | Build established: Hacker-Assassin 15154 | -1/Access | Discovered new exit (range 5) 15179 | -1/Access | Identified exit to Surface 15203 | *** | Escaped! Last Messages --------------- 15072_ The unstable cave ceiling collapses. 15082_ Connecting with Terminal... 15086_ Dismantling Sealed Barrier with Imp. Plasma Cutter. 15116_ The unstable cave ceiling collapses. 15116_ Dismantling Sealed Barrier with Imp. Plasma Cutter. 15116_ Sealed Barrier dismantled. 15118_ Jacked R-10 Processor... >>formatsys_low Rerouting network defenses. Erasing system data. Installing primary routines, ETC: 6. 15119_ Reactivated Processor 10a. 15139_ ALERT: Potential suspicious activity detected, Programmers report to Access Zone 9I. 15154_ Main Access Shell breached. 15154_ EXIT=FOUND 15179_ EXIT=IDENTIFIED: SURFACE Map ----- +----------------------------------------------------+ | ??????????#??????????????????????#? ## | | ????##????#??????????????????????# ## | | #????????#???????????????????????# ] #### | | ?????????????????????????????????# """"" #### | | ???#??#????????????????????????#?# """"" + | | #???????#????????????????????????# """"" #### | | ############??????????##???????#?# """"" #??? | | """""" #??###????????????????# """"" ]#??? | | """""" #### ###??#???????????# #??? | | " """""" # ##?#???????????# #??? | | " """""" # #################+##########??? | | " """""" ######???? | | # # ????? | | " # ### ""####### # ????? | | " #?# ""#??#??# # *????? | | " #?# ""##????# # ????? | | /* #####?# T#?????# + ????? | | #= #?????# ""#?????# # ????? | | # #?????# ""#?????# # ????? | | ############ ##???## ""#??#### ######???? | | ########### #??##"""""" """????# #???????? | | T" #???## #????#????????????? | | " #???## #????????? ???????? | | ########### #????# """""" #?#???????????????? | | ????????####+######?# " " #?????????????????? | | ????????# #?# " @" " #?#???????????????? | | ????????# #?#w "" "? ##???? ??? ???????? | | ??? ????# ### "? ##????????????????? | | ????????# Y## """" ##????? ??????????? | | ????????# ### #?? ?????????????? | | ????????# #?#""""""""""#??? ????????????? | | ????????# [#?????????"?????? ? ???????????? | | ????????# #????????????????? ????????????? | | ???????"###########??????????????? ????? ????????? | | ?????????????????????????????????????????????????? | | ????????????? ????????BB????BB????#??????????????? | | ??????????????????????BB????BB???#???????????????? | | ???????????????????????????? ????????????????????? | | ??????????? ???"??????????????????#??????????????? | | ?????????????????????? ??? ?? ???????????????????? | | ???????????????????????? ?????????#??????????????? | | ?????????????????????#???????#???????????????????? | | ?????????????????????????????????????????????????? | | ?????????????????????????????????????????????????? | | ?????????????????????????????????????????????????? | | ?????????????????????????????????????????????????? | | ?????????????????????????????????????????????????? | | ?????????????????????????????????????????????????? | | ?????????????????????????????????????????????????? | | ?????????????????????????????????????????????????? | +----------------------------------------------------+ Best States ------------- Heat Dissipation 103 Energy Generation 36 Energy Capacity 390 Matter Stores 300 Matter Capacity 300 Sight Range 20 Terrain Scan Range 20 Terrain Scan Density 10 Jamming Range 14 Cloak Strength 2 Base Temperature (-) 200 Armor Coverage 950 Resistance: TH 10 Weapon Shielding 66 Evasion (%) 70 Targeting Accuracy 12 Target Analysis 12 Core Analysis 9 Armor Integrity Analysis 30 Recoil Reduction 4 Kinecelleration 40 Offensive Hacking 34 Defensive Hacking 34 Relay Coupler Types 3 Relay Coupler Value 63 Trap Extractor Capacity 6 Item Schematics ----------------- None Robot Schematics ------------------ None Fabricated ------------ HERF Cannon | x2 | -6/Factory | Preloaded Repaired ---------- Flexi-carbon Leg | 31% | -5/Factory Gauss Rifle | 37% | -5/Factory Gauss Rifle | 45% | -5/Factory Adv. Powered Armor | 56% | -5/Factory Flexi-carbon Leg | 72% | -5/Factory Lgt. Deuterium Engine | 26% | -5/Factory Transmission Jammer | 50% | -5/Factory Centrium Leg | 19% | -1/Access Studied --------- Hvy. Assault Rifle | -8/Materials | Hacked Aluminum Leg | -8/Materials | Hacked Flexi-carbon Leg | -5/Factory | Hacked Mic. Fission Core | -5/Factory | Hacked Gauss Rifle | -5/Factory | Hacked KE Penetrator | -5/Factory | Hacked Biometal Leg | -2/Research | Hacked Railgun | -2/Research | Hacked Alien Tech Used ----------------- None Achievements -------------- Taming Of The Crushers Challenges ------------ None Game ------ Seed ArchitectGuidedChainsaw Manual? 0 Play Time 01:40:40 Cumulative 2010.3 hours Start 2025.11.02 @ 16:54:09 End 2025.11.02 @ 18:33:46 Sessions 1 Manual Loads 0 Difficulty Rogue Special Mode None Game No. 1312 Rogue 1308 Adventurer 4 Explorer 0 Win Type 0 Total 269 Types 202/12/21/10/3/1/4/9/5/2 Lore% 98 Gallery% 96 Achievement% 84 Wizard Run 0 Options --------- Layout 2 ASCII 0 Keyboard 1 Movement Vi Keybinds 0 Fullscreen 0 Font 24/Terminus Map View 59x48 Zoom Use 0% Tactical HUD 1 Map Filters NONE Filters NONE Steam 1 RUN: 6ad03d95-7c4b-40af-b0b1-b068b2c8b076